[Event "Titled Tuesday Blitz December 27 Early 2022"]
[White "Abdilkhair, Abilmansur"]
[Black "Chernov, Mikhail"]
[WhiteFideId "13716417"]
[BlackFideId "24143170"]
[WhiteElo "2268"]
[BlackElo "2205"]
[Result "1-0"]
[Round "01"]
[TimeControl "180+2"]
[Date "2022.12.27"]
[WhiteClock "0:02:50"]
[BlackClock "0:02:18"]

1. d4 {[%clk 0:03:00]}  d5 {[%clk 0:02:55]} 2. Nf3 {[%clk 0:03:00]}  Nc6 {[%clk 0:02:55]} 3. e3 {[%clk 0:02:59]}  Bg4 {[%clk 0:02:56]} 4. Bb5 {[%clk 0:02:59]}  e6 {[%clk 0:02:49]} 5. Nbd2 {[%clk 0:02:57]}  Bd6 {[%clk 0:02:47]} 6. c4 {[%clk 0:02:57]}  a6 {[%clk 0:02:42]} 7. Bxc6+ {[%clk 0:02:56]}  bxc6 {[%clk 0:02:43]} 8. Qa4 {[%clk 0:02:56]}  Qd7 {[%clk 0:02:36]} 9. c5 {[%clk 0:02:55]}  Bxf3 {[%clk 0:02:32]} 10. Nxf3 {[%clk 0:02:55]}  Be7 {[%clk 0:02:21]} 11. Ne5 {[%clk 0:02:54]}  Qc8 {[%clk 0:02:21]} 12. Qxc6+ {[%clk 0:02:54]}  Kf8 {[%clk 0:02:22]} 13. Nd7+ {[%clk 0:02:53]}  Ke8 {[%clk 0:02:18]} 14. Nb6+ {[%clk 0:02:50]} 1-0


[Site "https://www.chess.com"]

[Event "Titled Tuesday Blitz December 27 Early 2022"]
[White "Akylbekov, Nasyr"]
[Black "Kleiman, Jake"]
[WhiteFideId "13800353"]
[BlackFideId "2020041"]
[WhiteElo "2239"]
[BlackElo "2399"]
[Result "1-0"]
[Round "01"]
[TimeControl "180+2"]
[Date "2022.12.27"]
[WhiteClock "0:00:15"]
[BlackClock "0:00:03"]

1. e4 {[%clk 0:02:28]}  e5 {[%clk 0:02:58]} 2. Nf3 {[%clk 0:02:28]}  Nc6 {[%clk 0:02:58]} 3. Nc3 {[%clk 0:02:28]}  Nf6 {[%clk 0:02:58]} 4. d4 {[%clk 0:02:28]}  exd4 {[%clk 0:02:58]} 5. Nxd4 {[%clk 0:02:29]}  Bb4 {[%clk 0:02:58]} 6. Nxc6 {[%clk 0:02:29]}  bxc6 {[%clk 0:02:59]} 7. Bd3 {[%clk 0:02:30]}  O-O {[%clk 0:03:00]} 8. O-O {[%clk 0:02:30]}  d5 {[%clk 0:03:00]} 9. exd5 {[%clk 0:02:31]}  cxd5 {[%clk 0:03:01]} 10. Bg5 {[%clk 0:02:30]}  c6 {[%clk 0:02:59]} 11. Qf3 {[%clk 0:02:30]}  Be7 {[%clk 0:03:00]} 12. Rae1 {[%clk 0:02:29]}  h6 {[%clk 0:02:59]} 13. Bxh6 {[%clk 0:02:29]}  gxh6 {[%clk 0:02:38]} 14. Qe3 {[%clk 0:02:29]}  Ng4 {[%clk 0:01:43]} 15. Qxe7 {[%clk 0:02:27]}  Qxe7 {[%clk 0:01:44]} 16. Rxe7 {[%clk 0:02:27]}  Be6 {[%clk 0:01:45]} 17. Re1 {[%clk 0:02:25]}  a5 {[%clk 0:01:40]} 18. Na4 {[%clk 0:02:23]}  Rfb8 {[%clk 0:01:34]} 19. b3 {[%clk 0:02:20]}  Kf8 {[%clk 0:01:33]} 20. Rc7 {[%clk 0:02:13]}  Rc8 {[%clk 0:01:32]} 21. Rxc8+ {[%clk 0:02:07]}  Rxc8 {[%clk 0:01:33]} 22. Nc5 {[%clk 0:02:07]}  Re8 {[%clk 0:01:27]} 23. f3 {[%clk 0:01:52]}  Nf6 {[%clk 0:01:28]} 24. Kf2 {[%clk 0:01:50]}  Ke7 {[%clk 0:01:27]} 25. a4 {[%clk 0:01:46]}  h5 {[%clk 0:01:27]} 26. g3 {[%clk 0:01:42]}  Kd6 {[%clk 0:01:27]} 27. Nb7+ {[%clk 0:01:42]}  Kc7 {[%clk 0:01:24]} 28. Nxa5 {[%clk 0:01:41]}  Ra8 {[%clk 0:01:14]} 29. b4 {[%clk 0:01:39]}  c5 {[%clk 0:01:15]} 30. Bb5 {[%clk 0:01:32]}  cxb4 {[%clk 0:00:55]} 31. Nc6 {[%clk 0:01:33]}  Bd7 {[%clk 0:00:47]} 32. Nxb4 {[%clk 0:01:33]}  Bxb5 {[%clk 0:00:40]} 33. axb5 {[%clk 0:01:34]}  Kd6 {[%clk 0:00:41]} 34. Rb1 {[%clk 0:01:27]}  Rb8 {[%clk 0:00:40]} 35. Nd3 {[%clk 0:01:26]}  Nd7 {[%clk 0:00:37]} 36. g4 {[%clk 0:01:20]}  hxg4 {[%clk 0:00:37]} 37. fxg4 {[%clk 0:01:20]}  Rc8 {[%clk 0:00:34]} 38. Rb2 {[%clk 0:01:17]}  Nb6 {[%clk 0:00:33]} 39. h4 {[%clk 0:01:14]}  Nc4 {[%clk 0:00:29]} 40. Rb4 {[%clk 0:01:13]}  Nb6 {[%clk 0:00:29]} 41. Rb2 {[%clk 0:01:06]}  Nc4 {[%clk 0:00:28]} 42. Ra2 {[%clk 0:01:07]}  Rb8 {[%clk 0:00:28]} 43. Ra6+ {[%clk 0:01:05]}  Ke7 {[%clk 0:00:29]} 44. Ra7+ {[%clk 0:00:41]}  Kf6 {[%clk 0:00:27]} 45. g5+ {[%clk 0:00:36]}  Kg7 {[%clk 0:00:23]} 46. h5 {[%clk 0:00:29]}  Rxb5 {[%clk 0:00:22]} 47. g6 {[%clk 0:00:29]}  Nd6 {[%clk 0:00:22]} 48. Ne5 {[%clk 0:00:29]}  Rc5 {[%clk 0:00:19]} 49. Nxf7 {[%clk 0:00:28]}  Ne4+ {[%clk 0:00:15]} 50. Ke3 {[%clk 0:00:27]}  Rxc2 {[%clk 0:00:15]} 51. Ne5+ {[%clk 0:00:24]}  Kf6 {[%clk 0:00:15]} 52. Nd3 {[%clk 0:00:20]}  Rh2 {[%clk 0:00:13]} 53. Rf7+ {[%clk 0:00:18]}  Ke6 {[%clk 0:00:10]} 54. Nf4+ {[%clk 0:00:15]}  Kd6 {[%clk 0:00:10]} 55. g7 {[%clk 0:00:16]}  Rh4 {[%clk 0:00:03]} 56. g8=Q {[%clk 0:00:15]} 1-0


[Site "https://www.chess.com"]

[Event "Titled Tuesday Blitz December 27 Early 2022"]
[White "Alex_Sahakyan2006"]
[Black "Makhmudov, Shukhrat"]
[BlackFideId "14200775"]
[WhiteElo "2629"]
[BlackElo "2115"]
[Result "1-0"]
[Round "01"]
[TimeControl "180+2"]
[Date "2022.12.27"]
[WhiteClock "0:01:07"]
[BlackClock "0:01:19"]

1. d3 {[%clk 0:03:00]}  e6 {[%clk 0:02:59]} 2. Nf3 {[%clk 0:03:00]}  d5 {[%clk 0:03:00]} 3. g3 {[%clk 0:03:00]}  c6 {[%clk 0:02:59]} 4. Bg2 {[%clk 0:03:01]}  Nf6 {[%clk 0:02:59]} 5. O-O {[%clk 0:03:00]}  Nbd7 {[%clk 0:02:58]} 6. c4 {[%clk 0:03:01]}  Be7 {[%clk 0:02:58]} 7. b3 {[%clk 0:03:01]}  O-O {[%clk 0:02:58]} 8. Bb2 {[%clk 0:03:02]}  Re8 {[%clk 0:02:59]} 9. Nbd2 {[%clk 0:03:02]}  Nf8 {[%clk 0:02:59]} 10. Ne5 {[%clk 0:03:01]}  N8d7 {[%clk 0:02:55]} 11. Ndf3 {[%clk 0:02:59]}  Nf8 {[%clk 0:02:51]} 12. Ng5 {[%clk 0:02:58]}  h6 {[%clk 0:02:42]} 13. Ngxf7 {[%clk 0:02:53]}  Qc7 {[%clk 0:02:42]} 14. Qd2 {[%clk 0:02:45]}  N6h7 {[%clk 0:02:42]} 15. Rac1 {[%clk 0:02:30]}  dxc4 {[%clk 0:02:37]} 16. dxc4 {[%clk 0:02:19]}  Bf6 {[%clk 0:02:37]} 17. Rfd1 {[%clk 0:02:13]}  Re7 {[%clk 0:02:31]} 18. Nd6 {[%clk 0:02:08]}  Bxe5 {[%clk 0:02:10]} 19. Bxe5 {[%clk 0:02:09]}  Ng6 {[%clk 0:02:10]} 20. Bb2 {[%clk 0:01:54]}  Bd7 {[%clk 0:01:54]} 21. Be4 {[%clk 0:01:49]}  Ngf8 {[%clk 0:01:47]} 22. Be5 {[%clk 0:01:42]}  Nf6 {[%clk 0:01:30]} 23. Bb1 {[%clk 0:01:32]}  Qb6 {[%clk 0:01:22]} 24. c5 {[%clk 0:01:28]}  Qa6 {[%clk 0:01:20]} 25. Rc4 {[%clk 0:01:14]}  Nd5 {[%clk 0:01:19]} 26. Ra4 {[%clk 0:01:07]} 1-0


[Site "https://www.chess.com"]

[Event "Titled Tuesday Blitz December 27 Early 2022"]
[White "Alice, Mateus Felizardo Viageiro"]
[Black "Toropov, Pavel"]
[WhiteFideId "14800047"]
[BlackFideId "24129178"]
[WhiteElo "2202"]
[BlackElo "2336"]
[Result "0-1"]
[Round "01"]
[TimeControl "180+2"]
[Date "2022.12.27"]
[WhiteClock "0:00:07"]
[BlackClock "0:00:40"]

1. e4 {[%clk 0:03:00]}  e6 {[%clk 0:03:00]} 2. d3 {[%clk 0:02:59]}  d5 {[%clk 0:03:00]} 3. Nd2 {[%clk 0:02:59]}  c5 {[%clk 0:03:01]} 4. g3 {[%clk 0:02:58]}  Nf6 {[%clk 0:03:01]} 5. Bg2 {[%clk 0:02:58]}  Nc6 {[%clk 0:03:02]} 6. Ngf3 {[%clk 0:02:57]}  b5 {[%clk 0:03:01]} 7. a4 {[%clk 0:02:56]}  b4 {[%clk 0:03:00]} 8. O-O {[%clk 0:02:56]}  Be7 {[%clk 0:02:59]} 9. e5 {[%clk 0:02:56]}  Nd7 {[%clk 0:02:58]} 10. Re1 {[%clk 0:02:57]}  Qc7 {[%clk 0:02:59]} 11. Qe2 {[%clk 0:02:57]}  a5 {[%clk 0:02:59]} 12. Nf1 {[%clk 0:02:51]}  Bb7 {[%clk 0:02:53]} 13. h4 {[%clk 0:02:50]}  O-O {[%clk 0:02:53]} 14. N1h2 {[%clk 0:02:50]}  Rfc8 {[%clk 0:02:53]} 15. h5 {[%clk 0:02:49]}  h6 {[%clk 0:02:52]} 16. Ng4 {[%clk 0:02:49]}  Qd8 {[%clk 0:02:41]} 17. Bf4 {[%clk 0:02:47]}  Ra6 {[%clk 0:02:40]} 18. Qd2 {[%clk 0:02:43]}  Bf8 {[%clk 0:02:39]} 19. b3 {[%clk 0:02:31]}  Rb6 {[%clk 0:02:10]} 20. Rad1 {[%clk 0:02:29]}  Nd4 {[%clk 0:02:07]} 21. Nxd4 {[%clk 0:01:44]}  cxd4 {[%clk 0:02:05]} 22. Qc1 {[%clk 0:01:42]}  Rbc6 {[%clk 0:02:02]} 23. Re2 {[%clk 0:01:41]}  Qc7 {[%clk 0:01:58]} 24. Rdd2 {[%clk 0:01:36]}  Ba6 {[%clk 0:01:57]} 25. Qb2 {[%clk 0:01:32]}  Rc3 {[%clk 0:01:52]} 26. Nh2 {[%clk 0:01:23]}  Nc5 {[%clk 0:01:27]} 27. Nf3 {[%clk 0:01:06]}  Bxd3 {[%clk 0:01:24]} 28. cxd3 {[%clk 0:01:04]}  Rxb3 {[%clk 0:01:24]} 29. Qa2 {[%clk 0:01:04]}  Ra3 {[%clk 0:01:19]} 30. Qb1 {[%clk 0:01:03]}  Nxa4 {[%clk 0:01:18]} 31. Re1 {[%clk 0:00:49]}  Nc3 {[%clk 0:01:12]} 32. Qb2 {[%clk 0:00:48]}  Ra2 {[%clk 0:01:10]} 33. Qc1 {[%clk 0:00:46]}  Ne2+ {[%clk 0:00:50]} 34. Rdxe2 {[%clk 0:00:44]}  Qxc1 {[%clk 0:00:49]} 35. Bxc1 {[%clk 0:00:40]}  Rxe2 {[%clk 0:00:48]} 36. Rxe2 {[%clk 0:00:38]}  Rxc1+ {[%clk 0:00:49]} 37. Kh2 {[%clk 0:00:35]}  b3 {[%clk 0:00:49]} 38. Nxd4 {[%clk 0:00:29]}  a4 {[%clk 0:00:47]} 39. Rb2 {[%clk 0:00:16]}  Ba3 {[%clk 0:00:47]} 40. Re2 {[%clk 0:00:16]}  Bc5 {[%clk 0:00:46]} 41. Nxb3 {[%clk 0:00:05]}  axb3 {[%clk 0:00:46]} 42. Rb2 {[%clk 0:00:05]}  Rc3 {[%clk 0:00:46]} 43. Bf1 {[%clk 0:00:05]}  Ba3 {[%clk 0:00:46]} 44. Rb1 {[%clk 0:00:05]}  b2 {[%clk 0:00:46]} 45. d4 {[%clk 0:00:06]}  Rb3 {[%clk 0:00:43]} 46. Kg2 {[%clk 0:00:05]}  Rb4 {[%clk 0:00:43]} 47. Bd3 {[%clk 0:00:05]}  Rxd4 {[%clk 0:00:43]} 48. Bc2 {[%clk 0:00:06]}  Rd2 {[%clk 0:00:43]} 49. Bb3 {[%clk 0:00:05]}  Kf8 {[%clk 0:00:41]} 50. Kf1 {[%clk 0:00:05]}  Bc5 {[%clk 0:00:40]} 51. f3 {[%clk 0:00:06]}  Rf2+ {[%clk 0:00:39]} 52. Ke1 {[%clk 0:00:05]}  Rxf3 {[%clk 0:00:40]} 53. Ba2 {[%clk 0:00:06]}  Rxg3 {[%clk 0:00:40]} 54. Rxb2 {[%clk 0:00:07]}  Rg1+ {[%clk 0:00:40]} 0-1


[Site "https://www.chess.com"]

[Event "Titled Tuesday Blitz December 27 Early 2022"]
[White "Almeida Junior, Alvaro Alves de"]
[Black "Turzo, Attila"]
[WhiteFideId "2149974"]
[BlackFideId "704954"]
[WhiteElo "2062"]
[BlackElo "2279"]
[Result "0-1"]
[Round "01"]
[TimeControl "180+2"]
[Date "2022.12.27"]
[WhiteClock "0:01:17"]
[BlackClock "0:00:07"]

1. e4 {[%clk 0:03:00]}  c5 {[%clk 0:02:48]} 2. Nf3 {[%clk 0:02:58]}  d6 {[%clk 0:02:45]} 3. Bb5+ {[%clk 0:02:54]}  Bd7 {[%clk 0:02:26]} 4. Bxd7+ {[%clk 0:02:54]}  Nxd7 {[%clk 0:02:13]} 5. O-O {[%clk 0:02:55]}  Ngf6 {[%clk 0:02:12]} 6. Qe2 {[%clk 0:02:54]}  g6 {[%clk 0:02:11]} 7. Rd1 {[%clk 0:02:55]}  Bg7 {[%clk 0:02:11]} 8. c3 {[%clk 0:02:55]}  O-O {[%clk 0:01:47]} 9. d4 {[%clk 0:02:54]}  Ne8 {[%clk 0:01:48]} 10. Bf4 {[%clk 0:02:49]}  Nc7 {[%clk 0:01:10]} 11. Nbd2 {[%clk 0:02:45]}  Ne6 {[%clk 0:01:07]} 12. Be3 {[%clk 0:02:33]}  Rc8 {[%clk 0:00:58]} 13. Rac1 {[%clk 0:02:31]}  Qc7 {[%clk 0:00:56]} 14. Nf1 {[%clk 0:02:23]}  a6 {[%clk 0:00:54]} 15. Ng3 {[%clk 0:02:19]}  c4 {[%clk 0:00:49]} 16. h4 {[%clk 0:02:17]}  b5 {[%clk 0:00:48]} 17. h5 {[%clk 0:02:16]}  Rfe8 {[%clk 0:00:46]} 18. hxg6 {[%clk 0:02:16]}  hxg6 {[%clk 0:00:46]} 19. Ng5 {[%clk 0:02:11]}  Nxg5 {[%clk 0:00:45]} 20. Bxg5 {[%clk 0:02:12]}  Nf6 {[%clk 0:00:39]} 21. Qe3 {[%clk 0:02:04]}  e6 {[%clk 0:00:29]} 22. Qf4 {[%clk 0:02:00]}  Nh7 {[%clk 0:00:23]} 23. Bh6 {[%clk 0:02:00]}  Qe7 {[%clk 0:00:21]} 24. e5 {[%clk 0:01:50]}  d5 {[%clk 0:00:20]} 25. Kf1 {[%clk 0:01:40]}  g5 {[%clk 0:00:20]} 26. Qg4 {[%clk 0:01:32]}  Bxh6 {[%clk 0:00:20]} 27. Ke2 {[%clk 0:01:33]}  Bg7 {[%clk 0:00:18]} 28. Rh1 {[%clk 0:01:33]}  f5 {[%clk 0:00:16]} 29. Qh5 {[%clk 0:01:31]}  Bf8 {[%clk 0:00:17]} 30. Rh2 {[%clk 0:01:27]}  Rc7 {[%clk 0:00:16]} 31. Rch1 {[%clk 0:01:27]}  Qf7 {[%clk 0:00:17]} 32. Qf3 {[%clk 0:01:27]}  Qg6 {[%clk 0:00:16]} 33. Nh5 {[%clk 0:01:27]}  Rf7 {[%clk 0:00:16]} 34. Nf6+ {[%clk 0:01:25]}  Nxf6 {[%clk 0:00:09]} 35. Rh8+ {[%clk 0:01:25]}  Kg7 {[%clk 0:00:10]} 36. exf6+ {[%clk 0:01:24]}  Kxf6 {[%clk 0:00:08]} 37. Qe3 {[%clk 0:01:18]}  e5 {[%clk 0:00:07]} 38. dxe5+ {[%clk 0:01:17]}  Rxe5 {[%clk 0:00:07]} 0-1


[Site "https://www.chess.com"]

[Event "Titled Tuesday Blitz December 27 Early 2022"]
[White "Andreev, Eduard"]
[Black "Sailer, Mike"]
[WhiteFideId "14103400"]
[BlackFideId "2012901"]
[WhiteElo "2413"]
[BlackElo "2109"]
[Result "1/2-1/2"]
[Round "01"]
[TimeControl "180+2"]
[Date "2022.12.27"]
[WhiteClock "0:00:05"]
[BlackClock "0:00:18"]

1. e4 {[%clk 0:02:48]}  d5 {[%clk 0:02:59]} 2. exd5 {[%clk 0:02:47]}  Qxd5 {[%clk 0:02:58]} 3. Nc3 {[%clk 0:02:46]}  Qd6 {[%clk 0:02:59]} 4. d4 {[%clk 0:02:46]}  Nf6 {[%clk 0:02:59]} 5. Nf3 {[%clk 0:02:46]}  c6 {[%clk 0:03:00]} 6. Bc4 {[%clk 0:02:45]}  Bg4 {[%clk 0:02:59]} 7. Be3 {[%clk 0:02:41]}  e6 {[%clk 0:02:59]} 8. h3 {[%clk 0:02:40]}  Bh5 {[%clk 0:02:58]} 9. O-O {[%clk 0:02:39]}  Be7 {[%clk 0:02:57]} 10. Re1 {[%clk 0:02:37]}  O-O {[%clk 0:02:54]} 11. a4 {[%clk 0:02:36]}  a5 {[%clk 0:02:50]} 12. Be2 {[%clk 0:02:18]}  Nbd7 {[%clk 0:02:47]} 13. Qd2 {[%clk 0:02:16]}  Nb6 {[%clk 0:02:43]} 14. Bf4 {[%clk 0:02:13]}  Qd8 {[%clk 0:02:37]} 15. Rad1 {[%clk 0:02:04]}  Nbd5 {[%clk 0:02:33]} 16. Bg3 {[%clk 0:02:03]}  Nxc3 {[%clk 0:02:16]} 17. bxc3 {[%clk 0:02:01]}  Ne4 {[%clk 0:02:11]} 18. Qe3 {[%clk 0:01:57]}  Nxg3 {[%clk 0:02:11]} 19. fxg3 {[%clk 0:01:56]}  Bd6 {[%clk 0:02:11]} 20. Ne5 {[%clk 0:01:46]}  Bxe2 {[%clk 0:02:11]} 21. Rxe2 {[%clk 0:01:47]}  Qc7 {[%clk 0:02:05]} 22. g4 {[%clk 0:01:44]}  c5 {[%clk 0:01:56]} 23. Qe4 {[%clk 0:01:30]}  cxd4 {[%clk 0:01:38]} 24. cxd4 {[%clk 0:01:26]}  Rac8 {[%clk 0:01:31]} 25. Rb1 {[%clk 0:01:24]}  Bxe5 {[%clk 0:01:19]} 26. dxe5 {[%clk 0:01:16]}  Qc5+ {[%clk 0:01:14]} 27. Kh2 {[%clk 0:01:15]}  Rc7 {[%clk 0:01:10]} 28. Rb5 {[%clk 0:01:14]}  Qc3 {[%clk 0:00:55]} 29. Qd3 {[%clk 0:00:32]}  Qxd3 {[%clk 0:00:52]} 30. cxd3 {[%clk 0:00:33]}  Rd8 {[%clk 0:00:52]} 31. Rxa5 {[%clk 0:00:31]}  g6 {[%clk 0:00:53]} 32. Rd2 {[%clk 0:00:28]}  Rd4 {[%clk 0:00:50]} 33. Kg3 {[%clk 0:00:25]}  Rc3 {[%clk 0:00:45]} 34. Kh4 {[%clk 0:00:15]}  Rdxd3 {[%clk 0:00:41]} 35. Rxd3 {[%clk 0:00:16]}  Rxd3 {[%clk 0:00:41]} 36. Rb5 {[%clk 0:00:16]}  Rd7 {[%clk 0:00:41]} 37. Kg5 {[%clk 0:00:13]}  Kg7 {[%clk 0:00:40]} 38. a5 {[%clk 0:00:14]}  h6+ {[%clk 0:00:34]} 39. Kf4 {[%clk 0:00:14]}  g5+ {[%clk 0:00:31]} 40. Ke4 {[%clk 0:00:13]}  Kg6 {[%clk 0:00:30]} 41. g3 {[%clk 0:00:11]}  Kg7 {[%clk 0:00:27]} 42. h4 {[%clk 0:00:11]}  gxh4 {[%clk 0:00:27]} 43. gxh4 {[%clk 0:00:11]}  h5 {[%clk 0:00:25]} 44. g5 {[%clk 0:00:08]}  Kg6 {[%clk 0:00:25]} 45. Rc5 {[%clk 0:00:08]}  Kg7 {[%clk 0:00:23]} 46. Rb5 {[%clk 0:00:07]}  Kg6 {[%clk 0:00:23]} 47. Rc5 {[%clk 0:00:05]}  Kg7 {[%clk 0:00:18]} 48. Rb5 {[%clk 0:00:05]} 1/2-1/2


[Site "https://www.chess.com"]

[Event "Titled Tuesday Blitz December 27 Early 2022"]
[White "Baches Garcia, Guillermo"]
[Black "Babazada, Khazar"]
[WhiteFideId "2209764"]
[BlackFideId "13413554"]
[WhiteElo "2327"]
[BlackElo "2474"]
[Result "1-0"]
[Round "01"]
[TimeControl "180+2"]
[Date "2022.12.27"]
[WhiteClock "0:00:13"]
[BlackClock "0:00:05"]

1. e4 {[%clk 0:03:00]}  Nf6 {[%clk 0:02:53]} 2. e5 {[%clk 0:03:01]}  Nd5 {[%clk 0:02:52]} 3. c4 {[%clk 0:03:01]}  Nb6 {[%clk 0:02:41]} 4. d4 {[%clk 0:03:02]}  d6 {[%clk 0:02:41]} 5. exd6 {[%clk 0:03:03]}  cxd6 {[%clk 0:02:42]} 6. Nc3 {[%clk 0:03:02]}  g6 {[%clk 0:02:42]} 7. Bd3 {[%clk 0:03:03]}  Bg7 {[%clk 0:02:42]} 8. Nge2 {[%clk 0:03:04]}  O-O {[%clk 0:02:42]} 9. O-O {[%clk 0:03:04]}  Nc6 {[%clk 0:02:42]} 10. d5 {[%clk 0:03:04]}  Ne5 {[%clk 0:02:42]} 11. b3 {[%clk 0:03:04]}  e6 {[%clk 0:02:38]} 12. dxe6 {[%clk 0:03:01]}  Bxe6 {[%clk 0:02:38]} 13. Be4 {[%clk 0:03:01]}  Qe7 {[%clk 0:02:33]} 14. Be3 {[%clk 0:02:59]}  Rad8 {[%clk 0:02:20]} 15. Bxb6 {[%clk 0:02:54]}  axb6 {[%clk 0:02:20]} 16. Qd2 {[%clk 0:02:51]}  Kh8 {[%clk 0:02:14]} 17. Rad1 {[%clk 0:02:51]}  f5 {[%clk 0:02:14]} 18. Bd5 {[%clk 0:02:45]}  Bc8 {[%clk 0:02:14]} 19. Rfe1 {[%clk 0:02:40]}  Qh4 {[%clk 0:02:08]} 20. g3 {[%clk 0:02:20]}  Qg4 {[%clk 0:02:08]} 21. f4 {[%clk 0:02:03]}  Nc6 {[%clk 0:01:59]} 22. Bg2 {[%clk 0:01:54]}  g5 {[%clk 0:01:55]} 23. Nd5 {[%clk 0:01:48]}  gxf4 {[%clk 0:01:52]} 24. Qxf4 {[%clk 0:01:41]}  Qg6 {[%clk 0:01:51]} 25. Qd2 {[%clk 0:01:35]}  f4 {[%clk 0:01:46]} 26. Nexf4 {[%clk 0:01:31]}  Qh6 {[%clk 0:01:46]} 27. Ne7 {[%clk 0:01:20]}  Bg4 {[%clk 0:01:40]} 28. Rc1 {[%clk 0:01:09]}  Ne5 {[%clk 0:01:40]} 29. Ned5 {[%clk 0:01:00]}  Rf7 {[%clk 0:01:36]} 30. Rf1 {[%clk 0:00:58]}  Rdf8 {[%clk 0:01:36]} 31. Rce1 {[%clk 0:00:58]}  Qg5 {[%clk 0:01:25]} 32. Nxb6 {[%clk 0:00:56]}  h5 {[%clk 0:01:21]} 33. Qxd6 {[%clk 0:00:55]}  Re8 {[%clk 0:01:03]} 34. Nbd5 {[%clk 0:00:51]}  Kg8 {[%clk 0:00:48]} 35. h4 {[%clk 0:00:50]}  Qf5 {[%clk 0:00:42]} 36. Be4 {[%clk 0:00:47]}  Qc8 {[%clk 0:00:39]} 37. Ng6 {[%clk 0:00:41]}  Qa8 {[%clk 0:00:28]} 38. Nxe5 {[%clk 0:00:34]}  Bxe5 {[%clk 0:00:20]} 39. Qh6 {[%clk 0:00:21]}  Rg7 {[%clk 0:00:13]} 40. Nf6+ {[%clk 0:00:16]}  Kf8 {[%clk 0:00:13]} 41. Nxe8+ {[%clk 0:00:15]}  Kxe8 {[%clk 0:00:13]} 42. Bg2 {[%clk 0:00:15]}  Qa7+ {[%clk 0:00:08]} 43. Kh2 {[%clk 0:00:14]}  Re7 {[%clk 0:00:05]} 44. Rxe5 {[%clk 0:00:12]}  Rxe5 {[%clk 0:00:05]} 45. Qh8+ {[%clk 0:00:13]} 1-0


[Site "https://www.chess.com"]

[Event "Titled Tuesday Blitz December 27 Early 2022"]
[White "Barp, Alberto"]
[Black "Fabris, Alberto"]
[WhiteFideId "872555"]
[BlackFideId "801348"]
[WhiteElo "2432"]
[BlackElo "2230"]
[Result "1-0"]
[Round "01"]
[TimeControl "180+2"]
[Date "2022.12.27"]
[WhiteClock "0:00:09"]
[BlackClock "0:00:03"]

1. d4 {[%clk 0:02:43]}  Nf6 {[%clk 0:02:59]} 2. Nc3 {[%clk 0:02:39]}  d5 {[%clk 0:02:58]} 3. Bf4 {[%clk 0:02:38]}  Bf5 {[%clk 0:02:52]} 4. f3 {[%clk 0:02:36]}  e6 {[%clk 0:02:51]} 5. g4 {[%clk 0:02:35]}  Bg6 {[%clk 0:02:51]} 6. h4 {[%clk 0:02:35]}  h6 {[%clk 0:02:38]} 7. e3 {[%clk 0:02:31]}  Bd6 {[%clk 0:02:36]} 8. Nge2 {[%clk 0:02:21]}  a6 {[%clk 0:02:31]} 9. Qd2 {[%clk 0:02:20]}  c5 {[%clk 0:02:30]} 10. Bxd6 {[%clk 0:02:18]}  Qxd6 {[%clk 0:02:29]} 11. Nf4 {[%clk 0:02:19]}  Bh7 {[%clk 0:02:26]} 12. g5 {[%clk 0:02:17]}  Nfd7 {[%clk 0:02:20]} 13. O-O-O {[%clk 0:02:14]}  Nc6 {[%clk 0:02:18]} 14. Nh5 {[%clk 0:01:53]}  Rg8 {[%clk 0:02:02]} 15. dxc5 {[%clk 0:01:38]}  Qxc5 {[%clk 0:02:00]} 16. Bd3 {[%clk 0:01:17]}  Bxd3 {[%clk 0:01:57]} 17. cxd3 {[%clk 0:01:18]}  hxg5 {[%clk 0:01:49]} 18. d4 {[%clk 0:01:16]}  Qa5 {[%clk 0:01:40]} 19. hxg5 {[%clk 0:01:17]}  O-O-O {[%clk 0:01:35]} 20. Kb1 {[%clk 0:01:17]}  Kb8 {[%clk 0:01:34]} 21. Nf4 {[%clk 0:01:03]}  g6 {[%clk 0:01:29]} 22. Rh7 {[%clk 0:01:01]}  Rdf8 {[%clk 0:01:28]} 23. Nxe6 {[%clk 0:00:53]}  fxe6 {[%clk 0:01:27]} 24. Rxd7 {[%clk 0:00:54]}  Rxf3 {[%clk 0:01:25]} 25. Qc2 {[%clk 0:00:25]}  Qb4 {[%clk 0:01:08]} 26. a3 {[%clk 0:00:25]}  Qc4 {[%clk 0:01:04]} 27. Re1 {[%clk 0:00:17]}  Rgf8 {[%clk 0:01:00]} 28. Na4 {[%clk 0:00:17]}  Qxc2+ {[%clk 0:00:49]} 29. Kxc2 {[%clk 0:00:18]}  Rf2+ {[%clk 0:00:49]} 30. Kb1 {[%clk 0:00:19]}  Kc8 {[%clk 0:00:40]} 31. Rg7 {[%clk 0:00:19]}  Rf1 {[%clk 0:00:37]} 32. Rxf1 {[%clk 0:00:18]}  Rxf1+ {[%clk 0:00:37]} 33. Ka2 {[%clk 0:00:19]}  Re1 {[%clk 0:00:35]} 34. Rxg6 {[%clk 0:00:19]}  Rxe3 {[%clk 0:00:34]} 35. Rg7 {[%clk 0:00:16]}  Nxd4 {[%clk 0:00:32]} 36. g6 {[%clk 0:00:16]}  Nf5 {[%clk 0:00:30]} 37. Nb6+ {[%clk 0:00:16]}  Kb8 {[%clk 0:00:29]} 38. Rf7 {[%clk 0:00:11]}  Rg3 {[%clk 0:00:25]} 39. Rf6 {[%clk 0:00:11]}  Ne7 {[%clk 0:00:16]} 40. Rxe6 {[%clk 0:00:11]}  Nxg6 {[%clk 0:00:16]} 41. Nxd5 {[%clk 0:00:11]}  Ka7 {[%clk 0:00:13]} 42. a4 {[%clk 0:00:11]}  Rg2 {[%clk 0:00:10]} 43. a5 {[%clk 0:00:11]}  Rg5 {[%clk 0:00:07]} 44. Rd6 {[%clk 0:00:09]}  Re5 {[%clk 0:00:03]} 45. b4 {[%clk 0:00:09]}  Nh4 {[%clk 0:00:03]} 46. Nb6 {[%clk 0:00:09]} 1-0


[Site "https://www.chess.com"]

[Event "Titled Tuesday Blitz December 27 Early 2022"]
[White "Bas Mas, Jose Joaquin"]
[Black "Atakishiyev, Elmar"]
[WhiteFideId "22219064"]
[BlackFideId "13410547"]
[WhiteElo "2197"]
[BlackElo "2363"]
[Result "1/2-1/2"]
[Round "01"]
[TimeControl "180+2"]
[Date "2022.12.27"]
[WhiteClock "0:00:34"]
[BlackClock "0:00:19"]

1. e4 {[%clk 0:02:59]}  e5 {[%clk 0:02:59]} 2. Nf3 {[%clk 0:02:55]}  Nc6 {[%clk 0:02:57]} 3. Bb5 {[%clk 0:02:53]}  a6 {[%clk 0:02:56]} 4. Bxc6 {[%clk 0:02:52]}  dxc6 {[%clk 0:02:56]} 5. d3 {[%clk 0:02:52]}  Bd6 {[%clk 0:02:51]} 6. b3 {[%clk 0:02:46]}  Nf6 {[%clk 0:02:50]} 7. Nbd2 {[%clk 0:02:43]}  O-O {[%clk 0:02:50]} 8. O-O {[%clk 0:02:39]}  Re8 {[%clk 0:02:50]} 9. Nc4 {[%clk 0:02:37]}  Nd7 {[%clk 0:02:49]} 10. Be3 {[%clk 0:02:27]}  Bf8 {[%clk 0:02:43]} 11. Kh1 {[%clk 0:02:21]}  b5 {[%clk 0:02:40]} 12. Na5 {[%clk 0:02:18]}  Nb8 {[%clk 0:02:40]} 13. a3 {[%clk 0:02:11]}  Bg4 {[%clk 0:02:37]} 14. h3 {[%clk 0:02:09]}  Bh5 {[%clk 0:02:37]} 15. b4 {[%clk 0:02:08]}  f6 {[%clk 0:02:30]} 16. g4 {[%clk 0:02:06]}  Bf7 {[%clk 0:02:30]} 17. Rg1 {[%clk 0:02:06]}  Kh8 {[%clk 0:02:29]} 18. Nh4 {[%clk 0:02:01]}  g6 {[%clk 0:02:01]} 19. Qf3 {[%clk 0:01:56]}  Be7 {[%clk 0:01:59]} 20. Ng2 {[%clk 0:01:25]}  Rf8 {[%clk 0:01:59]} 21. Qe2 {[%clk 0:01:23]}  Qe8 {[%clk 0:01:07]} 22. Raf1 {[%clk 0:01:18]}  Bd6 {[%clk 0:01:07]} 23. f4 {[%clk 0:01:16]}  Qe7 {[%clk 0:00:32]} 24. fxe5 {[%clk 0:01:07]}  Bxe5 {[%clk 0:00:25]} 25. Bc5 {[%clk 0:00:53]}  Bd6 {[%clk 0:00:25]} 26. Bd4 {[%clk 0:00:52]}  Be5 {[%clk 0:00:25]} 27. Bc5 {[%clk 0:00:45]}  Bd6 {[%clk 0:00:25]} 28. Bd4 {[%clk 0:00:35]}  Be5 {[%clk 0:00:19]} 29. Bc5 {[%clk 0:00:34]} 1/2-1/2


[Site "https://www.chess.com"]